bitfinex-derivatives/quotes_ETHF0:USTF0_20260201
["timestamp","ask_amount","ask_price","bid_price","bid_amount"]
[1769946182765,4.13716276,2414.4,2413.0,0.00298634]
[1769946183561,3.92989276,2414.2,2413.0,0.00298634]
[1769946183761,4.13717276,2414.2,2413.0,0.00298634]
[1769946183962,3.92989276,2414.0,2413.0,0.00298634]
[1769946185172,3.92989276,2413.8,2412.4,3.97450464]
[1769946185773,4.13723276,2413.5,2412.2,2.073]
[1769946186268,3.92989276,2414.1,2412.3,3.97450464]
[1769946186461,3.92989276,2414.1,2412.2,2.07590764]
[1769946186462,0.00471353,2414.5,2413.1,3.97450464]
[1769946186665,0.00471353,2414.5,2413.3,3.97450464]
[1769946187570,3.85527013,2415.1,2413.3,4.18185464]
[1769946187770,3.85527013,2415.7,2413.5,3.93885441]
[1769946188370,4.06242013,2415.7,2413.5,3.93885441]
[1769946188773,3.85527013,2415.5,2413.5,3.93885441]
[1769946191277,4.06244013,2415.5,2413.5,3.93885441]
[1769946192470,4.06244013,2415.5,2413.7,3.93885441]
[1769946192676,4.06244013,2415.5,2413.8,4.56006181]
[1769946192876,4.06244013,2415.5,2413.9,4.56006181]
[1769946193176,4.06244013,2415.5,2414.1,3.93885441]
[1769946193370,3.85527013,2415.5,2414.2,4.56006181]
[1769946193575,3.85527013,2415.5,2414.3,4.56006181]
[1769946193772,3.85527013,2415.5,2414.4,0.6212074]
[1769946193974,3.85527013,2415.5,2414.5,0.6212074]
[1769946194175,3.85527013,2415.5,2414.6,0.6212074]
[1769946194370,3.85527013,2415.5,2414.7,0.6212074]
[1769946194572,3.85527013,2415.5,2414.8,0.6212074]
[1769946194774,3.85527013,2415.5,2414.2,3.93885441]
[1769946194975,3.85527013,2415.5,2414.3,0.6212271]
[1769946195179,3.85527013,2415.5,2414.4,0.6212271]
[1769946195378,3.85527013,2415.5,2414.5,0.6212271]
[1769946195582,3.85527013,2415.5,2414.6,0.6212271]
[1769946195776,3.85527013,2415.5,2414.7,0.6212271]
[1769946195977,3.85527013,2415.5,2414.2,3.93885441]
[1769946196177,0.00355492,2415.7,2414.4,3.93885441]
[1769946196379,0.00355492,2415.7,2414.6,3.93885441]
[1769946196576,0.00355492,2415.7,2414.7,4.55901029]
[1769946196777,0.00355492,2415.7,2414.8,4.55901029]
[1769946196973,3.85882505,2415.7,2414.9,0.62015588]
[1769946197182,3.85882505,2415.7,2415.0,0.62015588]
[1769946197372,3.85882505,2415.7,2415.1,0.62015588]
[1769946197682,3.85882505,2415.7,2414.8,3.93885441]
[1769946197876,3.85882505,2415.7,2414.3,2.27927]
[1769946197877,0.00355492,2415.7,2414.9,4.55867444]
[1769946198077,3.85527013,2416.0,2415.0,4.55867444]
[1769946198282,3.85527013,2416.0,2415.1,0.61982003]
[1769946198484,3.85527013,2416.0,2415.0,3.93885441]
[1769946198678,3.85527013,2416.0,2415.1,0.61988816]
[1769946198880,3.85527013,2416.0,2415.0,3.93885441]
[1769946199179,3.85527013,2416.0,2415.1,0.61984778]
[1769946199486,3.85527013,2416.0,2415.2,0.61984778]
[1769946199679,3.85527013,2416.0,2415.0,3.93885441]
[1769946199881,3.85527013,2416.0,2414.6,3.93885441]
[1769946200185,3.85527013,2416.0,2414.7,4.55883866]
[1769946200489,3.85527013,2416.0,2414.8,0.61998425]
[1769946200781,3.85527013,2416.0,2414.9,0.61998425]
[1769946200982,3.85527013,2416.0,2414.7,3.93885441]
[1769946201183,3.85527013,2416.0,2414.8,0.60418295]
[1769946201377,3.85527013,2416.0,2414.9,0.60418295]
[1769946201577,3.85527013,2416.0,2415.0,0.60425904]
[1769946201777,3.85527013,2416.0,2415.1,0.60425904]
[1769946201978,3.85527013,2416.0,2414.3,2.072]
[1769946201979,0.20708,2416.5,2415.2,4.54311345]
[1769946202177,3.85527013,2416.4,2414.6,3.93885441]
[1769946202377,4.06236013,2416.4,2414.8,3.93885441]
[1769946202574,4.06236013,2416.4,2414.9,4.54305094]
[1769946202885,4.06236013,2416.4,2415.0,4.54305094]
[1769946203081,4.06236013,2416.4,2415.1,0.60419653]
[1769946203281,4.06236013,2416.4,2415.2,0.60419653]
[1769946203484,4.06236013,2416.4,2415.0,3.93885441]
[1769946203690,4.06236013,2416.4,2415.1,0.59165175]
[1769946203981,4.06236013,2416.4,2415.2,0.59165175]
[1769946204176,4.06236013,2416.4,2415.0,3.93885441]
[1769946204375,4.06236013,2416.4,2415.1,0.59177684]
[1769946204579,4.06236013,2416.4,2414.6,3.93885441]
[1769946204789,4.06236013,2416.4,2414.8,3.93885441]
[1769946204979,4.06236013,2416.4,2415.0,3.93885441]
[1769946205179,4.06236013,2416.4,2415.1,0.59176866]
[1769946205378,4.06236013,2416.4,2415.0,3.93885441]
[1769946205580,4.06236013,2416.4,2415.1,0.59165929]
[1769946205781,4.06236013,2416.4,2415.0,3.93885441]
[1769946205976,4.06236013,2416.4,2415.1,0.59165612]
[1769946206180,4.06236013,2416.4,2415.0,3.93885441]
[1769946206385,4.06236013,2416.4,2415.1,0.5915472]
[1769946206684,4.06236013,2416.4,2415.0,3.93885441]
[1769946206883,4.06236013,2416.4,2415.1,0.59151621]
[1769946207084,4.06236013,2416.4,2415.0,3.93885441]
[1769946207284,3.85527013,2418.2,2415.8,3.93885441]
[1769946207483,3.85527013,2418.2,2416.6,3.93885441]
[1769946207683,3.85527013,2418.2,2416.8,3.93885441]
[1769946207884,3.85527013,2418.2,2416.9,0.59152878]
[1769946208085,3.85527013,2418.2,2416.8,3.93885441]
[1769946210181,4.06221013,2418.2,2416.8,3.93885441]
[1769946210981,4.06221013,2418.2,2416.4,0.57824456]
[1769946210982,4.06221013,2418.2,2416.5,4.51709897]
[1769946211183,3.85527013,2417.8,2416.5,3.93885441]
[1769946216292,0.20696,2417.9,2416.5,3.93885441]
[1769946216589,0.415,2420.6,2415.9,5.971]
[1769946216590,3.85527013,2421.2,2418.7,3.93885441]
[1769946216791,3.85527013,2420.8,2418.9,3.93885441]
[1769946216990,4.06199013,2420.8,2419.0,4.51718992]
[1769946217190,3.85527013,2420.5,2419.2,3.93885441]
[1769946217392,3.97051973,2421.1,2419.3,4.59195693]
[1769946217697,3.97051973,2421.1,2419.5,3.95491812]
[1769946217897,3.97051973,2421.1,2418.9,2.37065143]
[1769946217898,3.97051973,2421.1,2419.7,3.95491812]
[1769946218090,3.97051973,2421.1,2419.9,3.95491812]
[1769946218291,2.39961448,2422.3,2420.1,3.95491812]
[1769946218597,2.39961448,2422.3,2419.7,4.499]
[1769946218598,0.20668,2421.3,2419.8,3.95491812]
[1769946219097,4.20800161,2420.9,2419.8,3.95491812]
[1769946219292,0.20668,2421.3,2419.8,3.95491812]
[1769946219491,0.2066,2422.1,2419.8,3.95491812]
[1769946219698,0.20662,2421.9,2419.8,4.60108562]
[1769946220288,3.97051973,2421.6,2419.8,3.95491812]
[1769946220489,3.97051973,2421.2,2419.7,2.07]
[1769946220694,3.97051973,2420.7,2418.8,3.95491812]
[1769946221294,3.97051973,2421.5,2418.8,3.95491812]
[1769946221493,3.97051973,2421.5,2419.0,3.95491812]
[1769946221694,3.97051973,2423.0,2420.6,3.95491812]
[1769946221999,4.17696973,2423.9,2421.2,3.95491812]
[1769946222194,3.97051973,2423.3,2421.2,3.95491812]
[1769946222388,3.97051973,2423.1,2421.2,3.95491812]
[1769946222589,0.20651,2423.2,2421.2,3.95491812]
[1769946222795,0.20665,2421.6,2420.6,0.00370763]
[1769946222995,4.17718973,2421.4,2419.4,2.069]
[1769946223292,4.17718973,2421.4,2419.3,4.496]
[1769946223293,0.20666,2421.4,2419.3,4.496]
[1769946223498,3.97051973,2421.3,2419.3,4.496]
[1769946223993,4.021661,2421.1,2419.3,4.49957949]
[1769946224401,4.021661,2421.0,2419.3,4.49957949]
[1769946224895,0.20668,2421.2,2419.4,4.02901]
[1769946225495,0.00388288,2421.3,2419.4,4.02901]
[1769946225496,4.02554388,2421.3,2419.4,4.02901]
[1769946225700,0.00388288,2421.3,2419.4,4.02901]
[1769946225901,4.02554388,2421.3,2419.4,4.02901]
[1769946226599,4.021661,2422.9,2419.4,4.02901]
[1769946226798,4.228171,2423.2,2420.5,4.02901]
[1769946226998,4.228171,2423.2,2420.7,4.02901]
[1769946227200,4.228171,2423.2,2420.7,4.67515812]
[1769946227397,4.021661,2423.2,2421.2,4.02901]
[1769946227593,4.021661,2423.2,2421.2,4.03202471]
[1769946228397,4.021661,2423.1,2421.2,4.03202471]
[1769946228600,4.021661,2423.0,2421.2,4.03202471]
[1769946229004,4.228161,2423.3,2421.2,4.03202471]
[1769946229697,4.021661,2423.2,2421.2,4.03202471]
[1769946229902,4.021661,2422.8,2421.2,4.03202471]
[1769946230294,4.20800161,2423.1,2421.2,4.03202471]
[1769946230295,4.021661,2423.1,2421.2,4.03202471]
[1769946230499,4.021661,2422.8,2421.2,4.03202471]
[1769946230996,4.021661,2424.4,2421.2,4.03202471]
[1769946231200,4.228111,2424.0,2421.7,4.02901]
[1769946231404,4.228111,2424.0,2421.9,4.02901]
[1769946231607,4.021661,2423.8,2421.9,4.02901]
[1769946232104,4.021661,2423.7,2421.9,4.02901]
[1769946232306,4.021661,2425.2,2422.7,4.02901]
[1769946232506,4.021661,2424.5,2422.7,4.02901]
[1769946232696,4.021661,2424.7,2422.7,4.02901]
[1769946233101,4.021661,2424.5,2422.7,4.02901]
[1769946233609,4.20800161,2424.0,2422.7,4.02901]
[1769946233798,4.021661,2424.0,2422.7,4.02901]
[1769946234005,4.20800161,2423.8,2422.7,4.02901]
[1769946234505,4.20800161,2423.7,2422.7,4.02901]
[1769946234706,4.20800161,2423.8,2422.7,4.02901]
[1769946234903,4.021661,2424.0,2422.7,4.02901]
[1769946235097,4.20800161,2423.9,2422.7,4.02901]
[1769946235303,4.20800161,2424.0,2422.7,4.02901]
[1769946236106,4.20800161,2423.7,2422.7,4.02901]
[1769946236506,4.20800161,2423.3,2422.4,2.067]
[1769946236703,8.22966261,2423.6,2422.4,2.067]
[1769946236903,4.021661,2423.6,2422.4,2.067]
[1769946237103,4.021661,2422.8,2421.4,4.02901]
[1769946237502,4.20800161,2422.4,2421.4,4.02901]
[1769946237900,4.20800161,2422.2,2421.4,4.02901]
[1769946238100,4.021661,2422.7,2421.4,4.02901]
[1769946238405,8.22966261,2422.7,2421.4,4.02901]
[1769946238605,4.021661,2422.7,2421.4,4.02901]
[1769946238804,8.22966261,2422.5,2421.4,4.02901]
[1769946239305,4.20800161,2422.4,2421.4,4.02901]
[1769946239706,4.20800161,2422.3,2421.4,4.02901]
[1769946239902,4.20800161,2422.4,2421.4,4.02901]
[1769946240311,4.20800161,2422.3,2421.4,4.02901]
[1769946240606,4.20800161,2422.4,2421.4,4.02901]
[1769946240808,4.20800161,2422.1,2421.4,4.02901]
[1769946241009,4.20800161,2422.2,2421.3,2.066]
[1769946241410,4.20800161,2422.1,2421.3,2.066]
[1769946241607,4.021661,2422.5,2421.4,4.02901]
[1769946242012,4.20800161,2422.2,2421.3,2.066]
[1769946242414,4.20800161,2421.9,2421.3,2.066]
[1769946242607,4.20800161,2421.7,2421.3,2.066]
[1769946242809,4.021661,2422.2,2421.3,2.066]
[1769946243110,0.20658,2422.4,2421.4,4.02901]
[1769946243315,4.228191,2423.0,2421.4,4.02901]
[1769946243714,8.22966261,2422.6,2421.4,4.02901]
[1769946243914,4.021661,2422.6,2421.4,4.02901]
[1769946244116,4.20800161,2422.4,2421.4,4.02901]
[1769946244317,4.228281,2421.9,2420.0,4.02901]
[1769946244616,4.228231,2422.5,2420.5,4.02901]
[1769946244816,4.021661,2422.3,2420.7,4.02901]
[1769946245016,4.021661,2422.3,2420.9,4.02901]
[1769946245214,4.02467571,2422.3,2421.1,4.02901]
[1769946245413,4.02467571,2422.3,2421.2,4.67493044]
[1769946245718,4.02467571,2422.3,2421.3,0.64592044]
[1769946245918,4.2049869,2422.1,2421.4,0.64586672]
[1769946246114,4.2049869,2422.1,2421.2,4.02901]
[1769946246319,4.021661,2424.3,2422.4,4.02901]
[1769946246515,4.021661,2424.3,2422.6,4.02901]
[1769946246720,4.021661,2424.3,2422.7,4.02901]
[1769946246920,4.021661,2424.3,2422.9,4.02901]
[1769946247116,4.021661,2424.3,2423.0,0.64537453]
[1769946247313,4.021661,2424.3,2423.1,0.64537453]
[1769946247512,2.423,2425.0,2422.6,2.066]
[1769946247513,3.98714058,2424.1,2422.6,2.066]
[1769946247716,4.19357058,2424.1,2422.6,2.066]
[1769946248012,3.98714058,2423.9,2422.6,2.066]
[1769946248417,3.98714058,2423.6,2422.6,2.066]
[1769946248619,3.99054985,2423.6,2421.8,3.047]
[1769946248820,4.19702985,2423.6,2421.9,3.66471055]
[1769946249720,4.19702985,2423.6,2421.9,3.66841073]
[1769946250824,3.98714058,2423.2,2421.9,0.00370018]
[1769946251025,3.98714058,2423.2,2421.9,3.66841073]
[1769946252224,3.98714058,2423.2,2421.9,0.00370018]
[1769946254225,4.19365058,2423.2,2421.9,0.00370018]
[1769946254422,3.98714058,2423.0,2421.9,0.00370018]
[1769946255021,4.19367058,2423.0,2421.9,0.00370018]
[1769946256527,3.98714058,2422.8,2421.9,0.00370018]
[1769946256735,3.98714058,2422.2,2420.8,2.37676261]
[1769946256925,3.98714058,2422.2,2420.9,3.66471055]
[1769946257124,3.98714058,2422.7,2421.4,2.35483828]
[1769946257429,3.98714058,2422.5,2421.1,3.66471055]
[1769946257822,3.98714058,2422.3,2421.1,0.00508884]
[1769946258226,3.98714058,2422.3,2421.2,2.35483828]
[1769946258427,3.98714058,2422.3,2421.1,3.66979939]
[1769946258627,3.98714058,2422.3,2421.1,6.02463767]
[1769946259028,3.98714058,2422.3,2421.1,0.00508884]
[1769946259425,3.98714058,2423.4,2422.2,2.35483828]
[1769946259627,3.98714058,2423.4,2422.0,3.66471055]
[1769946259930,3.98714058,2423.4,2422.1,0.57793365]
[1769946260226,3.98714058,2423.4,2422.2,0.57793365]
[1769946260431,3.98714058,2423.2,2421.4,3.66471055]
[1769946260623,3.98714058,2423.2,2421.6,3.66471055]
[1769946260824,3.98714058,2423.0,2421.7,0.57792271]
[1769946261033,3.98714058,2423.0,2421.8,0.57792271]
[1769946261230,3.98714058,2423.0,2421.9,0.57792271]
[1769946261432,3.98714058,2422.8,2421.6,3.66471055]
[1769946261629,3.98714058,2422.8,2421.7,4.24286506]
[1769946261829,3.98714058,2422.8,2421.2,2.065]
[1769946261830,4.19369058,2422.8,2421.8,0.57815451]
[1769946262023,4.19369058,2422.8,2421.4,3.66471055]
[1769946262224,4.19369058,2422.8,2421.5,0.57831673]
[1769946262431,4.19369058,2422.8,2421.6,0.57831673]
[1769946262628,4.19369058,2422.8,2421.7,0.57831673]
[1769946262836,3.98714058,2422.6,2421.4,3.66471055]
[1769946263023,3.98714058,2422.6,2421.5,0.56787611]
[1769946263224,3.98714058,2422.6,2421.6,0.56787611]
[1769946263535,3.98714058,2422.3,2421.2,2.065]
[1769946264028,0.20659,2422.2,2421.2,2.065]
[1769946264232,3.98714058,2422.1,2421.1,0.00508884]
[1769946266034,4.19374058,2422.1,2421.1,0.00508884]
[1769946266837,3.98714058,2421.9,2421.1,0.00508884]
[1769946267032,4.19756694,2421.9,2421.1,0.00508884]
[1769946267232,4.19756694,2421.9,2420.2,9.82793268]
[1769946267233,3.98714058,2421.6,2420.3,3.66471055]
[1769946267435,3.98714058,2421.6,2420.4,2.35483828]
[1769946267636,3.98714058,2421.6,2420.6,2.35483828]
[1769946268035,3.98714058,2421.6,2420.3,3.66471055]
[1769946268232,4.19381058,2421.4,2420.3,2.35890822]
[1769946268437,4.19381058,2421.4,2420.3,0.00406994]
[1769946269037,3.98714058,2421.2,2420.3,0.00406994]
[1769946269241,3.98714058,2421.0,2419.7,3.66471055]
[1769946269441,3.98714058,2421.0,2419.4,3.66471055]
[1769946269442,4.19384058,2421.0,2419.4,3.66471055]
[1769946269734,3.98714058,2420.8,2419.5,2.35483828]
[1769946269937,3.98714058,2420.6,2419.4,3.66471055]
[1769946270141,3.98714058,2421.8,2420.5,3.66471055]
[1769946270330,3.98714058,2421.8,2420.5,3.66898451]
[1769946270535,3.98714058,2421.8,2420.7,2.35483828]
[1769946271039,3.98714058,2421.8,2420.8,2.35483828]
[1769946271337,0.21042636,2421.9,2420.5,3.66898451]
[1769946271338,3.98714058,2421.5,2420.7,2.35483828]
[1769946271541,3.98714058,2421.5,2420.5,0.00427396]
[1769946271940,3.98714058,2421.5,2420.6,2.35483828]
[1769946272442,3.98714058,2421.5,2420.7,2.35483828]
[1769946272641,3.98714058,2421.5,2420.6,2.35483828]
[1769946273143,3.98714058,2421.5,2420.7,2.35483828]
[1769946273344,3.98714058,2421.5,2420.6,2.35483828]
[1769946273843,3.98714058,2421.5,2420.7,2.35483828]
[1769946274043,3.98714058,2421.5,2420.6,2.35483828]
[1769946274439,3.98714058,2421.5,2420.7,2.35483828]
[1769946274644,3.98714058,2421.5,2420.6,2.35483828]
[1769946275047,3.98714058,2421.5,2420.7,2.35483828]
[1769946275246,3.98714058,2421.5,2420.6,2.35483828]
[1769946275738,3.98714058,2421.5,2420.7,2.35483828]
[1769946275940,3.98714058,2421.5,2420.6,2.35483828]
[1769946276340,3.98714058,2421.5,2420.7,2.35483828]
[1769946276553,3.98714058,2421.2,2420.6,2.35483828]
[1769946276847,3.98714058,2421.2,2420.5,0.00427396]
[1769946277042,3.98714058,2421.2,2420.6,2.35483828]
[1769946277441,3.98714058,2421.2,2420.7,2.35483828]
[1769946277638,4.19382058,2421.2,2420.7,1.56977134]
[1769946277843,3.66979294,2421.0,2419.9,3.66471055]
[1769946278039,3.87649294,2421.0,2419.9,3.66471055]
[1769946278243,3.87651294,2420.7,2419.2,4.05797127]
[1769946278647,3.66979294,2420.5,2419.2,4.05797127]
[1769946278846,3.66979294,2420.5,2419.2,4.06232222]
[1769946280249,3.66979294,2420.8,2419.2,4.06232222]
[1769946280846,0.20672,2420.7,2419.2,4.06232222]
[1769946281049,3.66979294,2420.6,2419.2,4.06232222]
[1769946282646,3.87652294,2420.6,2419.2,4.06232222]
[1769946282951,0.20673,2420.6,2419.2,4.06232222]
[1769946283653,3.74632847,2420.5,2419.2,4.06232222]
[1769946284153,14.38791561,2421.7,2419.2,4.06232222]
[1769946284154,3.74632847,2421.1,2419.2,4.06232222]
[1769946284343,3.74632847,2421.1,2419.2,4.26917222]
[1769946284546,3.95303847,2420.9,2419.2,4.06232222]
[1769946285048,3.74632847,2420.7,2419.2,4.06232222]
[1769946285351,0.20674,2420.6,2419.2,4.06232222]
[1769946285652,3.95306847,2420.6,2419.2,4.06232222]
[1769946285842,0.20664,2421.7,2419.8,3.96642595]
[1769946286047,0.20664,2421.7,2420.0,3.96642595]
[1769946286448,3.95296847,2421.7,2420.0,3.96642595]
[1769946286647,3.95296847,2421.7,2420.0,4.17320595]
[1769946286648,0.20664,2421.7,2420.0,4.17320595]
[1769946286948,0.00380636,2421.9,2420.1,3.96642595]
[1769946289142,3.75013483,2421.9,2420.1,3.96642595]
[1769946290656,3.75013483,2421.9,2420.1,4.17319595]
[1769946291056,3.74632847,2421.6,2420.1,3.96642595]
[1769946294157,3.95297847,2421.6,2420.1,3.96642595]
[1769946301364,3.95298847,2421.4,2420.1,3.96642595]
[1769946301561,3.74632847,2421.4,2420.1,3.96642595]
[1769946305557,3.74632847,2421.7,2420.2,3.96642595]
[1769946305959,3.74632847,2421.7,2420.3,3.96642595]
[1769946306663,3.74632847,2421.7,2420.4,3.96642595]
[1769946310267,8.67306059,2422.9,2421.5,0.20665]
[1769946310465,0.20649,2423.5,2421.9,4.01534992]
[1769946310667,0.20649,2423.4,2421.9,4.01534992]
[1769946311268,0.2065,2423.3,2421.9,4.02004664]
[1769946311463,0.2065,2423.3,2421.9,0.00469672]
[1769946312376,3.90960991,2423.2,2421.9,0.00469672]
[1769946313478,0.00409246,2423.4,2421.9,0.00469672]
[1769946313479,3.90960991,2423.0,2421.9,0.00469672]
[1769946313680,3.90960991,2423.0,2421.9,4.02004664]
[1769946313880,3.90960991,2423.3,2421.9,4.02004664]
[1769946316783,0.00409246,2423.4,2421.9,4.02004664]
[1769946317485,0.00409246,2423.4,2422.1,4.01534992]
[1769946318791,0.00409246,2423.4,2422.1,4.22194992]
[1769946319985,4.11604991,2424.1,2422.1,4.22194992]
[1769946320689,3.90960991,2423.4,2422.1,4.01534992]
[1769946320891,3.91493423,2423.4,2422.1,4.01534992]
[1769946322585,3.91493423,2423.4,2421.9,2.07069672]
[1769946322586,4.11613991,2423.0,2421.9,0.00469672]
[1769946323591,3.90960991,2422.8,2421.9,0.00469672]
[1769946324189,3.90960991,2422.6,2421.1,4.01534992]
[1769946324487,3.90960991,2422.1,2421.0,6.08034992]
[1769946324691,3.90960991,2422.1,2421.1,4.01534992]
[1769946324893,3.90960991,2422.1,2421.1,4.02064457]
[1769946325093,3.90960991,2422.1,2421.1,0.00529465]
[1769946326486,3.90960991,2422.1,2421.1,4.02064457]
[1769946326791,3.90960991,2422.1,2421.1,0.00529465]
[1769946326983,3.90960991,2421.7,2420.5,4.01534992]
[1769946327185,3.90960991,2421.7,2420.2,4.01534992]
[1769946327588,3.90960991,2421.7,2420.4,4.01534992]
[1769946327993,3.91406763,2421.7,2420.4,4.0199396]
[1769946330096,0.00445772,2421.7,2420.4,4.0199396]
[1769946330598,3.91406763,2421.7,2420.4,4.0199396]
[1769946330799,4.12070763,2421.7,2420.4,0.00458968]
[1769946331090,3.90960991,2421.4,2420.4,0.00458968]
[1769946335195,4.11626991,2421.4,2420.4,0.00458968]
[1769946337395,3.9157248,2421.2,2420.4,0.00049722]
[1769946337600,4.1224048,2421.2,2420.4,0.00049722]
[1769946337792,3.9157248,2421.0,2419.7,3.89480614]
[1769946338500,3.9157248,2420.8,2419.7,3.89480614]
[1769946338695,4.1224348,2420.8,2419.7,0.0046834]
[1769946339003,3.9157248,2420.6,2419.7,0.0046834]
[1769946339800,3.9157248,2420.4,2419.7,0.0046834]
[1769946340202,3.9157248,2420.4,2419.1,3.89480614]
[1769946341298,3.9157248,2420.4,2419.1,3.89930923]
[1769946342506,4.1224748,2420.4,2419.1,3.89930923]
[1769946342900,3.9157248,2419.8,2419.1,0.00450309]
[1769946343102,3.92064123,2419.8,2419.1,0.00450309]
[1769946343503,4.12744123,2419.8,2418.5,3.89480614]
[1769946343902,0.20681,2419.7,2418.5,3.89480614]
[1769946344096,3.96854215,2419.6,2418.5,3.89480614]
[1769946344607,3.96854215,2419.6,2418.5,3.86735612]
[1769946344805,0.00491643,2419.8,2418.5,3.86735612]
[1769946344806,3.97345858,2419.8,2418.5,3.86735612]
[1769946345005,0.00491643,2419.8,2418.5,3.86735612]
[1769946346401,3.97345858,2419.8,2418.5,3.86735612]
[1769946346909,4.18025858,2419.8,2418.5,3.86735612]
[1769946347406,3.96854215,2419.6,2418.5,3.86735612]
[1769946347705,0.20682,2419.6,2418.5,3.86735612]
[1769946348510,4.17536215,2419.6,2418.5,3.86735612]
[1769946349712,3.96854215,2419.6,2418.5,3.86735612]
[1769946349906,0.00491643,2419.8,2418.5,3.86735612]
[1769946350413,0.20683,2419.5,2418.5,3.86735612]
[1769946351715,4.17537215,2419.5,2418.5,3.86735612]
[1769946353116,14.14854215,2420.7,2418.8,2.37916191]
[1769946353311,3.96854215,2420.7,2418.9,3.86200741]
[1769946353507,4.17528215,2420.5,2418.9,3.86200741]
[1769946353911,3.96854215,2420.3,2418.9,3.86200741]
[1769946354217,0.00374164,2420.3,2418.9,3.86200741]
[1769946354416,0.00374164,2420.3,2418.0,3.58069201]
[1769946354417,3.96854215,2418.9,2418.0,3.58069201]
[1769946354714,3.96854215,2418.9,2416.5,16.07165105]
[1769946354715,3.96854215,2418.4,2416.6,3.86200741]
[1769946354911,3.96854215,2418.4,2416.7,3.86200741]
[1769946355115,3.96854215,2418.4,2416.9,3.86200741]
[1769946355312,0.20693,2418.3,2416.9,3.86200741]
[1769946355515,0.20983897,2418.3,2417.3,3.86200741]
[1769946355816,0.00290897,2418.3,2417.4,3.86200741]
[1769946356016,0.00290897,2418.3,2417.6,3.86200741]
[1769946356214,0.00290897,2418.3,2417.7,8.26560002]
[1769946356411,0.00290897,2418.3,2417.8,12.12760743]
[1769946356607,0.00290897,2418.3,2417.8,3.86200741]
[1769946356813,0.00290897,2418.3,2417.9,8.26560002]
[1769946357206,0.00290897,2418.3,2418.0,3.86200741]
[1769946357611,0.00290897,2418.3,2418.1,8.26560002]
[1769946357914,0.00290897,2418.3,2417.6,3.86200741]
[1769946358114,0.00290897,2418.3,2417.7,8.26560002]
[1769946358311,0.00290897,2418.3,2417.3,3.86200741]
[1769946359216,3.97145112,2418.3,2417.0,3.86200741]
[1769946359414,3.96854215,2417.8,2416.9,0.00437414]
[1769946359615,3.96854215,2417.6,2416.9,0.00437414]
[1769946360011,3.96854215,2417.6,2416.4,3.86200741]
[1769946360216,3.96854215,2417.6,2416.0,3.86200741]
[1769946360607,3.96854215,2417.6,2416.3,3.86200741]
[1769946360806,3.96854215,2417.6,2415.5,2.426]
[1769946360807,3.96854215,2417.2,2416.0,3.86200741]
[1769946361007,3.96854215,2417.0,2416.3,0.00328716]
[1769946361609,4.494,2417.8,2415.4,2.068]
[1769946361610,3.96854215,2416.8,2415.7,3.86200741]
[1769946361917,3.96854215,2416.9,2415.4,3.86200741]
[1769946362213,4.17561215,2416.7,2415.4,3.86200741]
[1769946362516,3.96854215,2417.3,2415.4,3.86200741]
[1769946362720,3.96854215,2417.3,2416.0,3.86200741]
[1769946363218,3.96854215,2417.3,2415.6,8.26560002]
[1769946363219,4.17558215,2417.0,2415.5,3.86200741]
[1769946363415,3.96854215,2416.7,2415.4,3.86599446]
[1769946363914,4.17561215,2416.7,2415.5,3.86200741]
[1769946364119,3.96854215,2416.3,2415.4,0.00398705]
[1769946364320,3.97383507,2416.3,2415.4,0.00398705]
[1769946364514,3.96854215,2416.1,2414.9,2.069]
[1769946364813,0.20711,2416.2,2415.2,3.86200741]
[1769946365017,0.00529292,2416.3,2415.2,3.86200741]
[1769946365216,0.00529292,2416.3,2415.5,8.26560002]
[1769946365417,3.97383507,2416.3,2415.3,8.26560002]
[1769946365713,0.00529292,2416.3,2415.7,12.12760743]
[1769946365918,0.00529292,2416.3,2415.5,12.12760743]
[1769946366117,0.00529292,2416.3,2415.5,3.86200741]
[1769946366318,0.00529292,2416.3,2415.4,8.26560002]
[1769946366319,0.00529292,2416.3,2415.7,12.12760743]
[1769946366819,0.00529292,2416.3,2415.8,3.86200741]
[1769946367014,2.27606,2416.8,2415.8,12.12760743]
[1769946367214,2.27606,2416.8,2415.8,3.86200741]
[1769946367415,3.81794279,2416.7,2415.8,3.86200741]
[1769946367815,0.20706,2416.8,2415.9,11.97257455]
[1769946368019,4.02494279,2417.5,2416.2,3.70697453]
[1769946368214,3.81794279,2417.1,2415.4,3.70697453]
[1769946368421,3.81794279,2417.1,2415.6,3.70697453]
[1769946368915,3.81794279,2417.1,2415.7,3.70697453]
[1769946369118,3.82177245,2417.1,2415.7,3.70697453]
[1769946369319,7.53766174,2418.7,2415.3,0.00391169]
[1769946369320,3.81794279,2418.3,2416.9,3.70697453]
[1769946369515,3.81794279,2418.0,2416.4,3.70697453]
[1769946369716,3.81794279,2417.7,2416.4,3.70697453]
[1769946369915,3.81794279,2417.5,2416.4,3.70697453]
[1769946370320,3.82306099,2417.5,2416.4,3.70697453]
[1769946370519,3.81794279,2417.3,2416.1,3.70697453]
[1769946370720,4.02496279,2417.3,2416.1,3.70697453]
[1769946370920,4.02496279,2417.3,2415.4,3.70697453]
[1769946371121,3.81794279,2417.1,2415.7,3.70697453]
[1769946371323,4.02497279,2417.1,2415.7,3.70697453]
[1769946371618,4.02497279,2417.1,2415.7,11.97257455]
[1769946371826,4.02497279,2417.1,2415.7,3.70697453]
[1769946372022,4.02497279,2417.1,2416.0,3.70697453]
[1769946372218,3.82306099,2417.5,2416.1,3.70697453]
[1769946372414,3.82306099,2417.5,2416.3,3.70697453]
[1769946372618,4.03006099,2417.5,2416.0,3.70697453]
[1769946373023,4.03006099,2417.5,2416.3,3.70697453]
[1769946374124,0.0051182,2417.5,2415.7,0.20714]
[1769946374325,7.33076174,2419.2,2415.4,7.84297453]
[1769946374326,3.81794279,2419.0,2416.9,3.70697453]
[1769946374521,3.81794279,2418.2,2416.9,3.70697453]
[1769946374720,3.81794279,2417.8,2416.6,3.70697453]
[1769946374921,3.81794279,2418.2,2416.6,3.70697453]
[1769946375122,3.81794279,2418.2,2416.7,3.70697453]
[1769946375425,3.81794279,2418.2,2417.2,11.97257455]
[1769946375426,0.00321548,2418.2,2417.2,11.97257455]
[1769946375724,0.00321548,2418.2,2417.3,3.70697453]
[1769946375923,0.00321548,2418.2,2417.5,8.26560002]
[1769946376130,3.82115827,2418.2,2417.2,3.71116692]
[1769946376324,3.82115827,2418.2,2417.3,11.97257455]
[1769946376525,3.82115827,2418.2,2417.3,8.26560002]
[1769946376723,0.00321548,2418.2,2417.6,3.70697453]
[1769946376926,0.00321548,2418.2,2417.3,3.70697453]
[1769946377121,0.00321548,2418.2,2417.5,8.26560002]
[1769946377328,0.00321548,2418.2,2417.6,8.26560002]
[1769946377523,0.00321548,2418.2,2417.7,8.26560002]
[1769946377726,3.82115827,2418.2,2417.2,0.00419239]
[1769946378023,4.02489279,2418.1,2417.2,0.00419239]
[1769946378429,4.02489279,2418.1,2417.2,8.26979241]